bitfinex-derivatives/quotes_SOLF0:USTF0_20251107
["timestamp","ask_amount","ask_price","bid_price","bid_amount"]
[1762499851359,3.07,157.44,157.41,8.65621762]
[1762499851560,3.07,157.42,157.41,0.04591762]
[1762499852760,7.8615055,157.42,157.41,0.04591762]
[1762499853764,9.68055548,157.42,157.41,0.04591762]
[1762499855270,4.88904998,157.44,157.41,0.04591762]
[1762499855466,3.07,157.44,157.41,0.04591762]
[1762499855971,3.07,157.44,157.41,2.93591762]
[1762499856561,3.07,157.44,157.42,5.7201]
[1762499857460,3.11103165,157.45,157.42,8.6101]
[1762499861471,3.11103165,157.45,157.42,10.42914998]
[1762499865572,3.11103165,157.45,157.43,5.7197]
[1762499865770,0.04103165,157.45,157.44,2.9]
[1762499865971,3.02,157.5,157.47,8.6184]
[1762499866172,4.78980649,157.49,157.47,8.6184]
[1762499866470,3.02,157.5,157.47,8.6184]
[1762499866662,4.78989926,157.49,157.47,8.6184]
[1762499866863,3.02,157.5,157.47,8.6184]
[1762499867065,4.78989973,157.49,157.47,8.6184]
[1762499867262,3.06427097,157.5,157.47,8.6184]
[1762499867465,7.80995394,157.49,157.47,5.7184]
[1762499867662,3.02,157.49,157.47,5.7184]
[1762499869069,0.04427097,157.5,157.48,2.9]
[1762499869273,0.04427097,157.5,157.48,8.618]
[1762499869474,3.06427097,157.5,157.46,4.76078458]
[1762499870074,3.06427097,157.5,157.47,8.6183]
[1762499870375,3.06427097,157.5,157.47,2.9]
[1762499870572,0.04427097,157.5,157.47,2.9]
[1762499870768,0.04427097,157.5,157.48,5.718]
[1762499871168,3.06427097,157.5,157.48,5.718]
[1762499871972,0.04427097,157.5,157.49,4.71904998]
[1762499872474,3.02,157.56,157.52,2.9]
[1762499872674,7.81391724,157.55,157.52,4.71904998]
[1762499872875,4.79391724,157.54,157.52,4.71904998]
[1762499873072,3.02,157.55,157.52,4.71904998]
[1762499873576,3.06758828,157.55,157.52,4.76542571]
[1762499874575,3.06758828,157.55,157.52,10.48182571]
[1762499874879,0.04758828,157.55,157.53,2.9]
[1762499876171,3.06758828,157.55,157.52,0.04637573]
[1762499876572,3.06758828,157.55,157.52,2.94637573]
[1762499879277,0.04758828,157.55,157.53,4.71904998]
[1762499879474,0.04758828,157.55,157.54,2.9]
[1762499882381,66.28,157.6,157.56,2.9]
[1762499882683,66.28,157.6,157.57,2.9]
[1762499883473,66.28,157.6,157.57,2.94612423]
[1762499884880,3.02,157.59,157.57,0.04612423]
[1762499885979,8.7342,157.59,157.57,0.04612423]
[1762499886187,3.02,157.57,157.52,4.71904998]
[1762499887185,3.02,157.55,157.53,0.0415405]
[1762499887884,3.06017256,157.56,157.53,8.6576405]
[1762499888984,0.04017256,157.56,157.54,8.6158]
[1762499889289,0.04017256,157.56,157.54,2.9]
[1762499889782,0.04017256,157.56,157.53,2.9415405]
[1762499889783,3.06017256,157.56,157.53,2.9415405]
[1762499890287,0.04017256,157.56,157.54,8.6157]
[1762499891387,0.04017256,157.56,157.55,2.9]
[1762499896890,0.04017256,157.56,157.54,10.43474998]
[1762499897093,0.04017256,157.56,157.54,7.53474998]
[1762499897293,0.04017256,157.56,157.55,2.9]
[1762499898392,3.21017256,157.56,157.53,0.0415405]
[1762499898594,4.98904998,157.55,157.53,0.0415405]
[1762499900592,3.17,157.54,157.53,0.0415405]
[1762499900792,4.98904998,157.55,157.53,0.0415405]
[1762499901989,3.17,157.55,157.53,0.0415405]
[1762499903497,3.17,157.54,157.53,0.0415405]
[1762499904596,5.75537256,157.56,157.53,0.0415405]
[1762499904796,3.17,157.55,157.53,0.0415405]
[1762499905607,0.04017256,157.56,157.54,2.9]
[1762499906204,0.04017256,157.56,157.55,2.9]
[1762499906403,0.04017256,157.56,157.55,4.71904998]
[1762499907807,3.17,157.63,157.59,8.614]
[1762499908013,3.17,157.62,157.59,2.9]
[1762499908311,7.92080356,157.63,157.59,2.9]
[1762499908501,3.17,157.63,157.59,2.9]
[1762499908696,7.92080356,157.63,157.59,2.9]
[1762499908897,3.17,157.63,157.59,2.94520285]
[1762499909110,7.92080356,157.63,157.6,5.7136]
[1762499909296,3.17,157.63,157.6,5.7136]
[1762499910209,3.17,157.63,157.6,8.6136]
[1762499913211,3.17,157.63,157.59,0.04520285]
[1762499913414,3.17,157.61,157.59,0.04520285]
[1762499915010,3.17,157.6,157.59,0.04520285]
[1762499915209,7.93061062,157.6,157.59,0.04520285]
[1762499923517,3.17,157.6,157.59,0.04520285]
[1762499924120,7.93763012,157.6,157.59,0.04520285]
[1762499924722,3.15,157.59,157.53,5.716]
[1762499925020,3.15,157.57,157.53,5.716]
[1762499925222,3.15,157.57,157.53,8.616]
[1762499925823,3.19478182,157.57,157.53,8.66184851]
[1762499926619,3.15,157.55,157.53,0.04584851]
[1762499932025,7.92230984,157.54,157.53,0.04584851]
[1762499935723,3.15,157.56,157.53,0.04584851]
[1762499935923,3.15,157.55,157.53,0.04584851]
[1762499938130,4.76914345,157.56,157.54,2.9]
[1762499938425,3.19478182,157.57,157.53,5.76204851]
[1762499938725,3.15,157.55,157.53,5.76204851]
[1762499939320,3.15,157.55,157.53,8.66204851]
[1762499941124,3.15,157.55,157.53,2.94584851]
[1762499941930,3.15,157.55,157.53,0.04584851]
[1762499942423,3.19478182,157.57,157.53,2.94584851]
[1762499942620,0.04478182,157.57,157.53,2.94584851]
[1762499942815,0.04478182,157.57,157.55,5.7155]
[1762499943020,0.04478182,157.57,157.55,8.6155]
[1762499944526,0.04478182,157.57,157.56,2.9]
[1762499945035,3.15,157.56,157.53,5.76174851]
[1762499945330,3.15,157.56,157.53,0.04584851]
[1762499945831,3.15,157.54,157.53,0.04584851]
[1762499948522,3.15,157.56,157.53,2.94584851]
[1762499948725,3.15,157.56,157.53,8.66204851]
[1762499948921,3.15,157.56,157.53,5.76204851]
[1762499950234,3.15,157.56,157.53,0.04584851]
[1762499950431,3.15,157.55,157.53,0.04584851]
[1762499953026,3.14,157.54,157.53,0.04584851]
[1762499955443,3.14,157.51,157.45,2.9]
[1762499955930,3.14,157.51,157.47,5.7184]
[1762499956326,3.14,157.51,157.44,2.9]
[1762499956527,0.04484419,157.49,157.46,2.94447656]
[1762499956840,3.18484419,157.49,157.46,2.94447656]
[1762499958141,3.18484419,157.49,157.46,8.66297656]
[1762499960639,3.18484419,157.49,157.47,2.9]
[1762499960833,0.04484419,157.49,157.47,8.6184]
[1762499964538,0.04484419,157.49,157.48,2.9]
[1762499973241,0.04484419,157.49,157.47,8.6184]
[1762499973439,3.14,157.48,157.46,0.04447656]
[1762499974138,5.00238645,157.49,157.46,8.66317656]
[1762499974953,3.18484419,157.49,157.47,2.9]
[1762499975245,5.00238645,157.49,157.47,2.9]
[1762499975442,3.14,157.48,157.46,0.04447656]
[1762499975650,4.95754226,157.47,157.46,0.04447656]
[1762499975954,3.14,157.46,157.4,8.6207]
[1762499976138,1.81754226,157.44,157.4,2.9]
[1762499976338,1.81754226,157.46,157.4,2.9]
[1762499977042,0.04769804,157.45,157.43,8.6198]
[1762499978149,3.18769804,157.45,157.43,5.7198]
[1762499978749,3.18769804,157.45,157.42,2.9]
[1762499979745,0.04769804,157.45,157.43,8.6198]
[1762499981952,0.04769804,157.45,157.43,2.9]
[1762499982746,3.18769804,157.45,157.43,2.9]
[1762499984361,3.18769804,157.45,157.37,1.81754226]
[1762499984362,8.86,157.43,157.37,8.6317]
[1762499984558,4.95754226,157.4,157.37,2.91]
[1762499984859,1.81754226,157.38,157.35,2.91]
[1762499985561,1.86381995,157.38,157.35,2.95022884]
[1762499985751,1.86381995,157.38,157.35,8.67292884]
[1762499985953,5.00381995,157.38,157.35,2.95022884]
[1762499986362,1.81754226,157.36,157.35,0.04022884]
[1762499986564,4.95754226,157.36,157.35,0.04022884]
[1762499986958,4.95754226,157.36,157.32,2.91]
[1762499987162,1.81754226,157.34,157.32,2.91]
[1762499987467,4.95754226,157.36,157.32,2.91]
[1762499987663,4.95754226,157.36,157.33,2.91]
[1762499987970,4.99796834,157.36,157.33,2.95408223]
[1762499988367,4.99796834,157.36,157.33,8.67748223]
[1762499988665,1.85796834,157.36,157.34,2.91]
[1762499988865,0.04042608,157.36,157.34,8.633]
[1762499989071,0.04042608,157.36,157.35,2.91]
[1762499989263,1.81754226,157.42,157.35,2.91]
[1762499989571,3.14,157.41,157.38,2.91]
[1762499990472,3.18277111,157.41,157.38,2.95352291]
[1762499990862,0.04277111,157.41,157.39,2.91]
[1762499991480,0.04277111,157.41,157.39,8.6312]
[1762499991670,0.04277111,157.41,157.4,2.91]
[1762499999269,0.04277111,157.41,157.39,5.7212]
[1762499999476,3.18277111,157.41,157.38,2.95352291]
[1762500000782,0.04277111,157.41,157.4,2.91]
[1762500006882,0.04277111,157.41,157.4,4.72754226]
[1762500007985,0.04277111,157.41,157.4,2.91]
[1762500009685,0.04277111,157.41,157.38,2.95352291]
[1762500009990,0.04277111,157.41,157.39,2.91]
[1762500010990,0.04277111,157.41,157.39,8.6313]
[1762500011391,3.14277111,157.41,157.39,5.7213]
[1762500011892,3.14277111,157.41,157.38,2.94352291]
[1762500012691,3.14277111,157.41,157.38,8.66512291]
[1762500014091,4.96031337,157.41,157.38,8.66512291]
[1762500014679,1.86031337,157.41,157.39,2.9]
[1762500015394,0.04277111,157.41,157.39,8.6213]
[1762500017493,0.04277111,157.41,157.4,2.9]
[1762500025591,3.1,157.47,157.43,2.9]
[1762500026602,3.14533525,157.47,157.43,2.94203373]
[1762500026902,3.1,157.45,157.43,0.04203373]
[1762500028992,3.1,157.45,157.43,5.76183373]
[1762500030303,3.1,157.45,157.43,8.66183373]
[1762500030708,1.81754226,157.46,157.43,8.66183373]
[1762500030904,4.91754226,157.46,157.43,8.66183373]
[1762500032406,3.1,157.46,157.43,8.66183373]
[1762500035404,0.04533525,157.47,157.45,2.9]
[1762500036402,0.04533525,157.47,157.46,2.9]
[1762500038910,3.1,157.53,157.52,5.7166]
[1762500039110,4.77057386,157.53,157.52,5.7166]
[1762500039312,4.76660715,157.54,157.52,8.6166]
[1762500039609,3.08,157.55,157.52,8.6166]
[1762500039808,4.76665736,157.54,157.53,2.9]
[1762500040107,2.84145003,157.57,157.54,2.9]
[1762500040108,3.08,157.57,157.54,2.9]
[1762500040300,0.04359197,157.55,157.54,2.9]
[1762500041111,3.17359197,157.55,157.52,0.04661254]
[1762500042324,3.13,157.53,157.52,0.04661254]
[1762500052434,0.04359197,157.55,157.52,0.04661254]
[1762500052435,3.17359197,157.55,157.52,2.94661254]
[1762500056727,0.04359197,157.55,157.53,2.9]
[1762500057530,0.04359197,157.55,157.54,2.9]
[1762500063921,1.10458657,157.61,157.54,2.9]
[1762500063922,3.13,157.61,157.58,2.9]
[1762500064932,3.17031942,157.61,157.58,2.94299492]
[1762500066534,3.17031942,157.61,157.58,0.04299492]
[1762500067029,3.13,157.6,157.58,0.04299492]
[1762500068934,3.13,157.6,157.58,2.94299492]
[1762500070140,0.04031942,157.61,157.58,2.94299492]
[1762500070339,3.17031942,157.61,157.58,2.94299492]
[1762500070942,3.17031942,157.61,157.58,8.65729492]
[1762500072343,3.14,157.59,157.58,0.00299492]
[1762500072552,3.14,157.59,157.46,2.94]
[1762500072744,3.14,157.54,157.46,2.94]
[1762500072944,3.14,157.53,157.49,5.7178]
[1762500073249,3.14,157.53,157.46,2.94]
[1762500073436,3.18633497,157.51,157.48,0.04365609]
[1762500079647,3.14,157.5,157.48,0.04365609]
[1762500080251,5.7177,157.5,157.48,0.04365609]
[1762500080454,3.14,157.49,157.48,0.04365609]
[1762500084162,3.18633497,157.51,157.44,2.94]
[1762500084356,3.14,157.51,157.44,2.94]
[1762500084555,3.14,157.51,157.45,5.7192]
[1762500085163,3.14,157.49,157.46,0.04130768]
[1762500086856,3.14,157.49,157.46,8.70010768]
[1762500087163,3.18741481,157.5,157.46,2.98130768]
[1762500087661,3.18741481,157.5,157.47,5.7185]
[1762500087960,8.90511481,157.5,157.46,0.04130768]
[1762500088168,3.14,157.49,157.46,0.04130768]
[1762500088657,8.8581,157.49,157.46,0.04130768]
[1762500088863,3.14,157.48,157.46,0.04130768]
[1762500091863,8.8584,157.48,157.46,0.04130768]
[1762500092059,3.14,157.47,157.46,0.04130768]
[1762500094569,4.9587622,157.47,157.46,0.04130768]
[1762500100671,3.14,157.47,157.46,0.04130768]
[1762500112676,0.04741481,157.5,157.48,2.95]
[1762500112881,3.09741481,157.5,157.48,2.95]
[1762500115882,3.09741481,157.5,157.46,2.99130768]
[1762500116384,3.09741481,157.5,157.47,2.95]
[1762500117189,4.71619042,157.49,157.47,2.95]
[1762500117487,3.09741481,157.5,157.47,2.95]
[1762500117688,4.717978,157.49,157.47,4.7687622]
[1762500117890,3.09741481,157.5,157.47,4.7687622]
[1762500118183,4.71798023,157.49,157.47,4.7687622]
[1762500118389,3.09741481,157.5,157.47,4.7687622]
[1762500118590,4.71946383,157.49,157.47,4.7687622]
[1762500118798,3.09741481,157.5,157.47,4.7687622]
[1762500119089,7.76946432,157.49,157.46,5.76020768]
[1762500119390,3.05,157.48,157.46,7.57896988]
[1762500119583,3.05,157.48,157.46,10.52896988]
[1762500119888,3.05,157.49,157.46,10.52896988]
[1762500120190,3.05,157.49,157.47,2.95]
[1762500120584,3.05,157.49,157.47,8.6686]
[1762500120990,0.04741481,157.5,157.48,10.4868622]
[1762500121190,4.72084729,157.49,157.48,10.4868622]
[1762500121689,0.04741481,157.5,157.49,2.95]
[1762500122187,8.95645521,157.55,157.51,2.95]
[1762500122388,4.72231801,157.54,157.53,4.7687622]
[1762500122795,3.05,157.57,157.54,2.95]
[1762500123083,4.7235085,157.56,157.54,2.95]
[1762500123291,0.04075434,157.57,157.55,4.7687622]
[1762500123700,3.09075434,157.57,157.55,1.8187622]
[1762500124200,3.09075434,157.57,157.54,2.9952844]
[1762500125083,3.09075434,157.57,157.54,0.0452844]
[1762500125282,3.05,157.55,157.54,0.0452844]
[1762500125794,7.76305113,157.55,157.54,0.0452844]
[1762500127199,3.05,157.54,157.49,7.5363622]
[1762500127391,7.76305113,157.53,157.49,10.4863622]
[1762500127697,3.05,157.53,157.49,10.4863622]
[1762500128494,3.09486395,157.53,157.49,10.52870633]
[1762500128696,3.09486395,157.53,157.5,2.95]
[1762500128892,3.09486395,157.53,157.49,7.57870633]
[1762500129093,3.09486395,157.53,157.49,0.04234413]
[1762500129300,3.05,157.51,157.49,0.04234413]
[1762500129597,4.71019301,157.5,157.49,0.04234413]
[1762500129898,3.05,157.5,157.49,0.04234413]
[1762500130300,7.76019779,157.5,157.49,0.04234413]
[1762500133300,4.71019779,157.5,157.49,2.99234413]
[1762500133597,3.13486395,157.53,157.49,2.99234413]
[1762500133799,3.13486395,157.53,157.5,4.7687622]
[1762500134498,3.13486395,157.53,157.51,5.717]
[1762500136300,0.04486395,157.53,157.51,5.717]
[1762500136502,0.04486395,157.53,157.52,4.7687622]
[1762500141009,0.04486395,157.53,157.52,2.95]
[1762500141215,0.04486395,157.53,157.52,4.7687622]
[1762500143104,0.04486395,157.53,157.52,2.95]
[1762500143406,0.04486395,157.53,157.52,4.7687622]
[1762500151513,3.13486395,157.53,157.5,1.8187622]
[1762500151711,7.79872954,157.52,157.43,2.95]
[1762500151911,5.90645521,157.56,157.37,73.84910041]
[1762500151912,3.09,157.5,157.44,4.7687622]
[1762500152321,3.09,157.5,157.47,2.95]
[1762500152908,3.13380572,157.5,157.47,2.99467028]
[1762500154615,0.04380572,157.5,157.48,2.95]
[1762500155214,3.13380572,157.5,157.47,0.04467028]
[1762500155718,3.13380572,157.5,157.47,2.99467028]
[1762500156124,3.13380572,157.5,157.48,5.7182]
[1762500156418,0.04380572,157.5,157.49,2.95]
[1762500158324,7.75888741,157.57,157.51,2.95]
[1762500158525,3.09,157.57,157.51,2.95]
[1762500159129,3.09,157.57,157.53,2.94]
[1762500159423,0.04356155,157.54,157.53,2.94]
[1762500159829,0.04356155,157.54,157.53,8.6565]
[1762500160328,3.15356155,157.54,157.51,2.98531694]
[1762500160929,5.99366894,157.54,157.51,0.04531694]
[1762500161234,3.18,157.52,157.51,0.04531694]
[1762500162830,7.85007462,157.53,157.51,0.04531694]
[1762500163128,3.18,157.52,157.51,0.04531694]
[1762500173038,7.84556146,157.52,157.51,0.04531694]
[1762500173240,3.18,157.51,157.45,2.94]
[1762500173938,3.18,157.51,157.46,5.7189]
[1762500174134,0.04821609,157.5,157.47,2.98206063]
[1762500174332,3.22821609,157.5,157.47,2.98206063]
[1762500174935,3.22821609,157.5,157.47,0.04206063]
[1762500177135,7.84716446,157.49,157.47,0.04206063]
[1762500177340,3.18,157.48,157.47,0.04206063]
[1762500179042,7.84674171,157.48,157.47,0.04206063]
[1762500179232,3.18,157.48,157.47,0.04206063]
[1762500179438,7.84485061,157.48,157.47,0.04206063]
[1762500181039,3.18,157.48,157.47,0.04206063]
[1762500182433,3.18,157.49,157.47,0.04206063]
[1762500182930,3.22821609,157.5,157.47,2.98206063]
[1762500183738,3.22821609,157.5,157.47,0.04206063]
[1762500183941,3.22821609,157.5,157.47,5.76066063]
[1762500184538,0.04821609,157.5,157.49,2.94]
[1762500184745,3.18,157.56,157.5,2.94]
[1762500184936,3.18,157.54,157.45,2.94]
[1762500185242,3.18,157.5,157.42,2.94]
[1762500185444,3.18,157.5,157.44,5.78010739]
[1762500185644,3.18,157.49,157.45,5.7191]
[1762500185839,3.22395245,157.49,157.45,5.75994264]
[1762500186041,3.22395245,157.49,157.45,0.04084264]
[1762500186245,3.22395245,157.49,157.45,2.98084264]
[1762500186840,0.04395245,157.49,157.47,8.6586]
[1762500187641,3.22395245,157.49,157.47,5.7186]
[1762500187843,3.22395245,157.49,157.45,5.75994264]
[1762500188243,3.18,157.48,157.45,0.04084264]
[1762500189344,3.18,157.46,157.39,2.84010739]
[1762500189542,7.83909176,157.46,157.39,2.84010739]
[1762500189742,3.18,157.45,157.39,2.84010739]
[1762500190252,0.04139468,157.44,157.4,2.98384096]
[1762500190638,3.20139468,157.44,157.4,0.04384096]
[1762500192544,3.16,157.42,157.4,0.04384096]
[1762500205159,3.16,157.41,157.4,0.04384096]
[1762500213261,3.16,157.43,157.4,2.98384096]
[1762500213663,3.16,157.43,157.4,0.04384096]
[1762500214074,3.16,157.43,157.4,8.70494096]
[1762500214375,3.16,157.43,157.4,0.04384096]
[1762500216379,3.16,157.43,157.4,1.86301789]
[1762500217278,8.8801,157.43,157.4,1.86301789]
[1762500217471,3.16,157.42,157.4,1.86301789]
[1762500219182,3.05,157.41,157.4,0.04384096]
[1762500221587,2.97,157.43,157.4,4.81301789]
[1762500221979,2.97,157.43,157.4,1.86301789]
[1762500222175,2.97,157.43,157.4,4.81301789]
[1762500222781,1.81917693,157.41,157.33,1.81917693]
[1762500222982,2.97,157.38,157.31,1.81917693]
[1762500223182,2.97,157.36,157.31,1.81917693]
[1762500223380,2.97,157.36,157.27,8.7158]
[1762500223582,7.62893077,157.35,157.29,1.81917693]
[1762500223784,8.73921601,157.34,157.3,0.04386863]
[1762500223985,2.97,157.33,157.3,0.04386863]
[1762500227484,2.97,157.32,157.24,5.7268]
[1762500227688,1.81917693,157.31,157.24,1.81917693]
[1762500227986,2.97,157.3,157.24,1.81917693]
[1762500228187,2.97,157.28,157.24,1.81917693]
[1762500228487,2.97,157.28,157.22,4.80917693]
[1762500228687,2.97,157.26,157.23,0.04801828]
[1762500230991,0.04169838,157.27,157.25,2.99]
[1762500231190,0.04169838,157.27,157.26,1.81917693]
[1762500232582,0.04169838,157.27,157.26,4.80917693]
[1762500234197,0.04169838,157.27,157.26,6.08917693]
[1762500234399,2.97,157.33,157.28,8.7155]
[1762500234596,2.97,157.33,157.29,1.81917693]
[1762500235497,3.01467619,157.33,157.31,1.81917693]
[1762500236899,0.04467619,157.33,157.31,4.80917693]
[1762500240500,0.04467619,157.33,157.31,10.53347693]
[1762500240801,0.04467619,157.33,157.32,2.99]
[1762500241503,0.04467619,157.33,157.31,7.54347693]
[1762500241504,0.04467619,157.33,157.31,10.53347693]
[1762500243711,2.97,157.38,157.34,5.7233]
[1762500244008,2.97,157.38,157.35,1.81917693]
[1762500244706,3.01680731,157.38,157.35,1.86556111]
[1762500245806,3.01680731,157.38,157.35,0.04638418]
[1762500247206,2.97,157.37,157.35,0.04638418]
[1762500247596,10.51157693,157.37,157.35,0.04638418]
[1762500247798,2.97,157.36,157.35,0.04638418]
[1762500249701,2.97,157.36,157.28,4.80917693]
[1762500249903,2.97,157.34,157.28,4.80917693]
[1762500250501,2.97,157.34,157.28,2.99]
[1762500250701,3.23,157.32,157.29,0.04179184]
[1762500251507,3.23,157.27,157.22,5.7276]
[1762500251810,3.23,157.27,157.22,8.7076]
[1762500252404,3.23,157.27,157.23,2.98]
[1762500252707,3.27639325,157.26,157.23,0.0484636]
[1762500253316,3.23,157.25,157.23,0.0484636]
[1762500256320,3.23,157.24,157.23,0.0484636]
[1762500256613,5.04917693,157.24,157.23,0.0484636]
[1762500256814,3.23,157.23,157.17,8.7094]
[1762500257314,3.23,157.21,157.17,8.7094]
[1762500257511,3.23,157.21,157.15,5.7302]
[1762500257714,3.23,157.19,157.16,0.0440993]
[1762500259715,1.86660884,157.2,157.16,0.0440993]
[1762500260622,0.04743191,157.2,157.16,0.0440993]
[1762500261318,0.04743191,157.2,157.17,5.7293]
[1762500261724,0.04743191,157.2,157.16,0.0440993]
[1762500263925,1.81917693,157.19,157.16,0.0440993]
[1762500264424,7.54817693,157.19,157.16,0.0440993]
[1762500264622,1.81917693,157.19,157.16,0.0440993]
[1762500264822,1.81917693,157.17,157.1,5.7319]
[1762500265029,7.54887693,157.17,157.1,5.7319]
[1762500265933,0.04099003,157.15,157.12,0.04782427]
[1762500269029,1.86016696,157.15,157.12,0.04782427]
[1762500269230,1.81917693,157.13,157.12,0.04782427]
[1762500270127,1.81917693,157.13,157.06,5.7333]
[1762500270628,1.81917693,157.11,157.04,1.81917693]
[1762500270833,1.81917693,157.11,157.03,1.81917693]
[1762500271029,0.0406812,157.09,157.05,0.04171049]
[1762500272232,1.85985813,157.09,157.05,0.04171049]
[1762500273424,7.59245813,157.09,157.05,0.04171049]
[1762500274333,5.733,157.08,157.05,0.04171049]
[1762500274636,1.81917693,157.07,157.05,0.04171049]
[1762500275037,7.55247693,157.07,157.0,5.7356]
[1762500275234,1.81917693,157.07,156.99,1.81917693]
[1762500275632,1.81917693,157.05,156.99,5.7359]
[1762500275832,1.81917693,157.03,156.94,1.81917693]
[1762500276034,0.04127156,157.0,156.97,0.04822366]
[1762500276233,1.81917693,157.02,156.93,1.81917693]
[1762500276433,0.04472571,157.0,156.97,0.04760951]
[1762500276635,0.04067487,157.0,156.97,0.04409676]
[1762500278628,0.04067487,157.0,156.98,5.7363]
[1762500279143,0.04067487,157.0,156.97,0.04409676]
[1762500283036,0.04067487,157.0,156.97,5.78079676]
[1762500284434,0.04067487,157.0,156.98,5.7363]
[1762500284640,0.04067487,157.0,156.97,0.04409676]
[1762500285643,5.77657487,157.0,156.97,0.04409676]
[1762500286349,5.7363,156.99,156.97,0.04409676]
[1762500286645,5.7363,156.99,156.9,2.85808504]
[1762500287242,3.08,156.98,156.9,2.99]
[1762500287542,3.12235185,156.96,156.92,3.03120084]
[1762500289143,3.12235185,156.96,156.92,8.76970084]
[1762500290549,3.12235185,156.96,156.92,0.04120084]
[1762500290738,3.12235185,156.96,156.92,3.03120084]
[1762500292338,3.12235185,156.96,156.92,0.04120084]
[1762500293747,8.85975185,156.96,156.92,0.04120084]
[1762500293948,3.12235185,156.96,156.92,3.03120084]
[1762500294542,0.04235185,156.96,156.92,3.03120084]
[1762500295049,0.04235185,156.96,156.95,2.99]
[1762500295751,3.12235185,156.96,156.92,0.04120084]
[1762500296145,0.04235185,156.96,156.92,3.03120084]
[1762500296946,0.04235185,156.96,156.92,8.76980084]
[1762500297146,0.04235185,156.96,156.93,2.99]
[1762500297953,0.04235185,156.96,156.94,2.99]
[1762500298149,3.12235185,156.96,156.92,3.03120084]
[1762500298555,3.12235185,156.96,156.92,0.04120084]
[1762500298747,3.12235185,156.96,156.92,3.03120084]
[1762500300152,3.12235185,156.96,156.93,2.99]
[1762500300345,3.12235185,156.96,156.92,0.04120084]
[1762500300856,3.08,156.95,156.92,0.04120084]
[1762500301157,7.79551213,156.95,156.92,0.04120084]
[1762500301352,8.8181,156.94,156.92,0.04120084]
[1762500301650,0.04235185,156.96,156.86,2.85808504]
[1762500301651,3.08,156.93,156.86,2.99]
[1762500301853,3.08,156.91,156.86,2.99]
[1762500302048,3.08,156.89,156.86,2.99]
[1762500302250,3.08,156.87,156.83,2.99]
[1762500302552,3.08,156.87,156.79,2.99]
[1762500302949,0.04482506,156.85,156.82,2.99]
[1762500303453,3.12482506,156.85,156.81,3.0330117]
[1762500303658,3.12482506,156.85,156.81,0.0430117]
[1762500303959,3.08,156.83,156.81,0.0430117]
[1762500304546,7.79196716,156.84,156.81,0.0430117]
[1762500304846,3.08,156.84,156.81,3.0330117]
[1762500305448,3.08,156.84,156.81,0.0430117]
[1762500305858,3.08,156.83,156.81,0.0430117]
[1762500314365,3.09,156.84,156.81,0.0430117]
[1762500314754,4.75502286,156.85,156.81,3.0330117]
[1762500314959,3.13482506,156.85,156.81,0.0430117]
[1762500315161,3.09,156.83,156.81,0.0430117]
[1762500316557,4.71978218,156.83,156.81,0.0430117]
[1762500316858,3.09,156.82,156.81,0.0430117]
[1762500319068,3.09,156.8,156.75,2.99]
[1762500319965,3.09,156.79,156.72,8.7358]
[1762500320170,3.09,156.76,156.74,0.04401421]
[1762500320373,3.09,156.75,156.74,0.04401421]
[1762500320561,66.85,156.76,156.74,0.04401421]
[1762500320966,3.09,156.75,156.74,0.04401421]
[1762500322374,3.09,156.75,156.68,2.99]
[1762500323272,72.36268504,156.76,156.7,3.0118253]
[1762500323273,0.04820615,156.73,156.7,3.0118253]
[1762500323474,3.13820615,156.73,156.7,3.0118253]
[1762500326574,3.13820615,156.73,156.7,0.0218253]
[1762500327070,3.13820615,156.73,156.7,3.0118253]
[1762500327372,3.13820615,156.73,156.7,8.7584253]
[1762500327767,3.13820615,156.73,156.7,3.0118253]
[1762500328072,3.09,156.72,156.7,0.0218253]
[1762500328471,8.8361,156.72,156.7,0.0218253]
[1762500328672,3.09,156.71,156.63,2.99]
[1762500328870,5.94808504,156.7,156.63,2.99]
[1762500329066,3.09,156.69,156.63,2.99]
[1762500329868,3.09,156.67,156.63,8.7391]
[1762500330073,0.04136691,156.68,156.64,2.99]